[Event "January 9 Early 2024"]
[Site "https://www.chess.com"]
[Date "2024.01.11"]
[Round "4"]
[White "Duda, Jan-Krzysztof"]
[Black "Xu, Yi"]
[Result "1-0"]
[Board "118"]
[TimeControl "180+1"]
[WhiteFideId "1170546"]
[BlackFideId "8605564"]
[WhiteElo "3049"]
[BlackElo "2864"]
[WhiteTeam "POL"]
[BlackTeam "CHN"]
[WhiteClock "0:00:12"]
[BlackClock "0:00:09"]

1. d4 {[%clk 0:03:00]}  Nf6 {[%clk 0:02:59]} 2. Bf4 {[%clk 0:03:01]}  c5 {[%clk 0:02:58]} 3. dxc5 {[%clk 0:02:57]}  Na6 {[%clk 0:02:27]} 4. Nc3 {[%clk 0:02:43]}  Nxc5 {[%clk 0:02:25]} 5. f3 {[%clk 0:02:22]}  d6 {[%clk 0:02:20]} 6. e4 {[%clk 0:02:22]}  a6 {[%clk 0:02:13]} 7. Qd2 {[%clk 0:02:22]}  g6 {[%clk 0:02:06]} 8. O-O-O {[%clk 0:02:16]}  Bg7 {[%clk 0:02:06]} 9. e5 {[%clk 0:02:10]}  Nh5 {[%clk 0:01:19]} 10. Be3 {[%clk 0:02:09]}  Qa5 {[%clk 0:01:04]} 11. g4 {[%clk 0:02:01]}  Bxe5 {[%clk 0:01:04]} 12. gxh5 {[%clk 0:02:01]}  Bf5 {[%clk 0:00:58]} 13. Bd4 {[%clk 0:01:57]}  Rc8 {[%clk 0:00:51]} 14. Kb1 {[%clk 0:01:38]}  O-O {[%clk 0:00:50]} 15. Nge2 {[%clk 0:01:37]}  b5 {[%clk 0:00:39]} 16. Ng3 {[%clk 0:00:15]}  Bxg3 {[%clk 0:00:18]} 17. hxg3 {[%clk 0:00:14]}  b4 {[%clk 0:00:19]} 18. g4 {[%clk 0:00:12]}  Be6 {[%clk 0:00:10]} 19. hxg6 {[%clk 0:00:12]}  fxg6 {[%clk 0:00:09]} 20. Qh6 {[%clk 0:00:12]}  Rf7 {[%clk 0:00:09]} 21. Qxg6+ {[%clk 0:00:12]} 1-0

[Event "January 9 Early 2024"]
[Site "https://www.chess.com"]
[Date "2024.01.11"]
[Round "4"]
[White "Ibarra Jerez, Jose Carlos"]
[Black "Sturt, Raven"]
[Result "0-1"]
[Board "119"]
[TimeControl "180+1"]
[WhiteFideId "2226332"]
[BlackFideId "2007304"]
[WhiteElo "2943"]
[BlackElo "2758"]
[WhiteTeam "ESP"]
[BlackTeam "USA"]
[WhiteClock "0:00:02"]
[BlackClock "0:00:49"]

1. e4 {[%clk 0:03:00]}  c5 {[%clk 0:02:59]} 2. Nf3 {[%clk 0:03:00]}  e6 {[%clk 0:02:59]} 3. d4 {[%clk 0:03:00]}  cxd4 {[%clk 0:03:00]} 4. Nxd4 {[%clk 0:03:01]}  Nc6 {[%clk 0:03:00]} 5. Nc3 {[%clk 0:03:01]}  Qc7 {[%clk 0:03:00]} 6. Be3 {[%clk 0:02:55]}  a6 {[%clk 0:03:00]} 7. g4 {[%clk 0:02:55]}  Ne5 {[%clk 0:02:45]} 8. f4 {[%clk 0:02:37]}  Nc4 {[%clk 0:02:44]} 9. Bxc4 {[%clk 0:02:15]}  Qxc4 {[%clk 0:02:44]} 10. Qd3 {[%clk 0:02:16]}  Qxd3 {[%clk 0:02:41]} 11. cxd3 {[%clk 0:02:17]}  b5 {[%clk 0:02:42]} 12. Nb3 {[%clk 0:02:15]}  Ne7 {[%clk 0:02:04]} 13. Bc5 {[%clk 0:01:58]}  Ng6 {[%clk 0:01:52]} 14. Bxf8 {[%clk 0:01:58]}  Rxf8 {[%clk 0:01:53]} 15. Rf1 {[%clk 0:01:58]}  f5 {[%clk 0:01:52]} 16. gxf5 {[%clk 0:01:55]}  exf5 {[%clk 0:01:53]} 17. e5 {[%clk 0:01:55]}  Bb7 {[%clk 0:01:45]} 18. Nc5 {[%clk 0:01:45]}  Bc6 {[%clk 0:01:42]} 19. a3 {[%clk 0:01:37]}  Ke7 {[%clk 0:01:42]} 20. d4 {[%clk 0:01:35]}  d6 {[%clk 0:01:43]} 21. Nd3 {[%clk 0:01:27]}  Rad8 {[%clk 0:01:37]} 22. O-O-O {[%clk 0:01:16]}  dxe5 {[%clk 0:01:18]} 23. Nb4 {[%clk 0:00:27]}  Bg2 {[%clk 0:01:12]} 24. Rf2 {[%clk 0:00:23]}  Nxf4 {[%clk 0:01:12]} 25. Re1 {[%clk 0:00:13]}  Rxd4 {[%clk 0:01:05]} 26. Rxe5+ {[%clk 0:00:11]}  Kf6 {[%clk 0:01:05]} 27. Rc5 {[%clk 0:00:07]}  Rxb4 {[%clk 0:01:04]} 28. Rxg2 {[%clk 0:00:02]}  Nd3+ {[%clk 0:01:01]} 29. Kd2 {[%clk 0:00:01]}  Rxb2+ {[%clk 0:01:01]} 30. Kxd3 {[%clk 0:00:01]}  Rxg2 {[%clk 0:01:02]} 31. Nd5+ {[%clk 0:00:02]}  Kg5 {[%clk 0:01:00]} 32. Ne3 {[%clk 0:00:02]}  Rxh2 {[%clk 0:00:58]} 33. Rc7 {[%clk 0:00:03]}  g6 {[%clk 0:00:58]} 34. Nc2 {[%clk 0:00:02]}  Rd8+ {[%clk 0:00:57]} 35. Ke3 {[%clk 0:00:02]}  Kg4 {[%clk 0:00:54]} 36. Nb4 {[%clk 0:00:02]}  f4+ {[%clk 0:00:49]} 0-1

[Event "January 9 Early 2024"]
[Site "https://www.chess.com"]
[Date "2024.01.11"]
[Round "4"]
[White "Sidletskyi, Ivan"]
[Black "Tarhan, Adar"]
[Result "1-0"]
[Board "122"]
[TimeControl "180+1"]
[WhiteFideId "14156024"]
[BlackFideId "34544712"]
[WhiteElo "2504"]
[BlackElo "2681"]
[WhiteTeam "UKR"]
[BlackTeam "TUR"]
[WhiteClock "0:00:13"]
[BlackClock "0:00:15"]

1. e4 {[%clk 0:03:00]}  c6 {[%clk 0:03:00]} 2. d4 {[%clk 0:03:00]}  d5 {[%clk 0:03:01]} 3. f3 {[%clk 0:03:00]}  dxe4 {[%clk 0:03:01]} 4. fxe4 {[%clk 0:03:01]}  e5 {[%clk 0:03:00]} 5. Nf3 {[%clk 0:03:02]}  Bg4 {[%clk 0:03:00]} 6. Bc4 {[%clk 0:02:56]}  Bxf3 {[%clk 0:02:58]} 7. Qxf3 {[%clk 0:02:54]}  Nf6 {[%clk 0:02:59]} 8. dxe5 {[%clk 0:02:48]}  Qa5+ {[%clk 0:02:59]} 9. Nc3 {[%clk 0:02:43]}  Qxe5 {[%clk 0:02:58]} 10. Bf4 {[%clk 0:02:42]}  Qd4 {[%clk 0:02:58]} 11. Bxf7+ {[%clk 0:01:48]}  Kxf7 {[%clk 0:02:56]} 12. Rd1 {[%clk 0:01:48]}  Qc4 {[%clk 0:02:28]} 13. e5 {[%clk 0:01:40]}  Be7 {[%clk 0:01:10]} 14. exf6 {[%clk 0:01:35]}  Bxf6 {[%clk 0:01:11]} 15. Ne4 {[%clk 0:00:58]}  Re8 {[%clk 0:01:08]} 16. Qh5+ {[%clk 0:00:43]}  g6 {[%clk 0:01:08]} 17. Qxh7+ {[%clk 0:00:43]}  Bg7 {[%clk 0:01:09]} 18. Rf1 {[%clk 0:00:27]}  Rxe4+ {[%clk 0:01:07]} 19. Be3+ {[%clk 0:00:26]}  Qxf1+ {[%clk 0:00:56]} 20. Kxf1 {[%clk 0:00:27]}  Rxe3 {[%clk 0:00:56]} 21. Rd8 {[%clk 0:00:27]}  Kf6 {[%clk 0:00:25]} 22. Qh4+ {[%clk 0:00:24]}  g5 {[%clk 0:00:23]} 23. Qd4+ {[%clk 0:00:21]}  Re5 {[%clk 0:00:22]} 24. Qd6+ {[%clk 0:00:17]}  Re6 {[%clk 0:00:21]} 25. Qg3 {[%clk 0:00:13]}  Kg6 {[%clk 0:00:16]} 26. Rxb8 {[%clk 0:00:12]}  Be5 {[%clk 0:00:17]} 27. Qd3+ {[%clk 0:00:13]}  Kf6 {[%clk 0:00:15]} 28. Rxa8 {[%clk 0:00:13]} 1-0

[Event "January 9 Early 2024"]
[Site "https://www.chess.com"]
[Date "2024.01.11"]
[Round "4"]
[White "Hambleton, Aman"]
[Black "Kochiev, Ivan"]
[Result "0-1"]
[Board "124"]
[TimeControl "180+1"]
[WhiteFideId "2606577"]
[BlackFideId "2917890"]
[WhiteElo "2759"]
[BlackElo "2571"]
[WhiteTeam "CAN"]
[BlackTeam "BUL"]
[WhiteClock "0:00:01"]
[BlackClock "0:00:34"]

1. d4 {[%clk 0:03:00]}  Nf6 {[%clk 0:02:59]} 2. c4 {[%clk 0:02:59]}  e6 {[%clk 0:02:59]} 3. Nc3 {[%clk 0:02:59]}  c5 {[%clk 0:02:59]} 4. d5 {[%clk 0:02:59]}  exd5 {[%clk 0:03:00]} 5. cxd5 {[%clk 0:03:00]}  d6 {[%clk 0:03:01]} 6. e4 {[%clk 0:03:00]}  g6 {[%clk 0:03:02]} 7. Bd3 {[%clk 0:03:01]}  Bg7 {[%clk 0:03:01]} 8. h3 {[%clk 0:03:01]}  O-O {[%clk 0:02:59]} 9. Nf3 {[%clk 0:03:02]}  Na6 {[%clk 0:02:53]} 10. O-O {[%clk 0:03:02]}  Nc7 {[%clk 0:02:53]} 11. Re1 {[%clk 0:03:01]}  Re8 {[%clk 0:02:52]} 12. Bf4 {[%clk 0:03:00]}  b6 {[%clk 0:02:30]} 13. Nd2 {[%clk 0:02:43]}  Nh5 {[%clk 0:02:19]} 14. Bh2 {[%clk 0:02:41]}  Be5 {[%clk 0:02:19]} 15. Bxe5 {[%clk 0:02:41]}  Rxe5 {[%clk 0:02:15]} 16. Bf1 {[%clk 0:02:30]}  Rb8 {[%clk 0:01:59]} 17. Nc4 {[%clk 0:02:02]}  Re8 {[%clk 0:01:56]} 18. e5 {[%clk 0:01:35]}  dxe5 {[%clk 0:01:50]} 19. Nxe5 {[%clk 0:01:36]}  Qd6 {[%clk 0:01:35]} 20. Nc4 {[%clk 0:00:39]}  Qd8 {[%clk 0:01:24]} 21. Rxe8+ {[%clk 0:00:10]}  Nxe8 {[%clk 0:01:23]} 22. Nb5 {[%clk 0:00:02]}  Nhf6 {[%clk 0:01:02]} 23. Nxa7 {[%clk 0:00:01]}  Qxd5 {[%clk 0:00:59]} 24. Qxd5 {[%clk 0:00:01]}  Nxd5 {[%clk 0:01:00]} 25. Rd1 {[%clk 0:00:02]}  Nec7 {[%clk 0:00:54]} 26. a3 {[%clk 0:00:01]}  Bd7 {[%clk 0:00:50]} 27. a4 {[%clk 0:00:01]}  Bxa4 {[%clk 0:00:41]} 28. Ra1 {[%clk 0:00:01]}  Bd7 {[%clk 0:00:41]} 29. Ne5 {[%clk 0:00:01]}  Be6 {[%clk 0:00:37]} 30. Nac6 {[%clk 0:00:01]}  Ra8 {[%clk 0:00:37]} 31. Re1 {[%clk 0:00:01]}  Ra2 {[%clk 0:00:36]} 32. Nd3 {[%clk 0:00:01]}  Bf5 {[%clk 0:00:34]} 0-1

[Event "January 9 Early 2024"]
[Site "https://www.chess.com"]
[Date "2024.01.11"]
[Round "4"]
[White "Suyarov, Mukhammadzokhid"]
[Black "Lu, Shanglei"]
[Result "0-1"]
[Board "128"]
[TimeControl "180+1"]
[WhiteFideId "14210495"]
[BlackFideId "8603332"]
[WhiteElo "2773"]
[BlackElo "2977"]
[WhiteTeam "UZB"]
[BlackTeam "CHN"]
[WhiteClock "0:00:04"]
[BlackClock "0:01:14"]

1. e4 {[%clk 0:03:00]}  c5 {[%clk 0:03:00]} 2. Nf3 {[%clk 0:03:00]}  e6 {[%clk 0:03:00]} 3. d4 {[%clk 0:02:59]}  cxd4 {[%clk 0:03:01]} 4. Nxd4 {[%clk 0:03:00]}  Nf6 {[%clk 0:03:01]} 5. Nc3 {[%clk 0:02:52]}  Nc6 {[%clk 0:03:02]} 6. Nxc6 {[%clk 0:02:51]}  bxc6 {[%clk 0:03:02]} 7. e5 {[%clk 0:02:51]}  Nd5 {[%clk 0:03:02]} 8. Ne4 {[%clk 0:02:51]}  Qc7 {[%clk 0:03:03]} 9. f4 {[%clk 0:02:51]}  Qb6 {[%clk 0:03:04]} 10. c4 {[%clk 0:02:50]}  Bb4+ {[%clk 0:03:04]} 11. Ke2 {[%clk 0:02:50]}  f5 {[%clk 0:03:05]} 12. exf6 {[%clk 0:02:49]}  Nxf6 {[%clk 0:03:05]} 13. Be3 {[%clk 0:02:49]}  Qd8 {[%clk 0:03:05]} 14. Nd6+ {[%clk 0:02:48]}  Bxd6 {[%clk 0:03:06]} 15. Qxd6 {[%clk 0:02:49]}  Bb7 {[%clk 0:03:06]} 16. Rd1 {[%clk 0:02:41]}  Rc8 {[%clk 0:03:06]} 17. Bc5 {[%clk 0:02:25]}  Ne4 {[%clk 0:03:02]} 18. Qe5 {[%clk 0:02:22]}  Nxc5 {[%clk 0:03:03]} 19. Qxc5 {[%clk 0:02:22]}  Qf6 {[%clk 0:02:49]} 20. Qd6 {[%clk 0:01:48]}  Rd8 {[%clk 0:02:45]} 21. Rd2 {[%clk 0:01:43]}  c5 {[%clk 0:02:40]} 22. Ke3 {[%clk 0:01:33]}  Rf8 {[%clk 0:02:35]} 23. Bd3 {[%clk 0:01:32]}  g5 {[%clk 0:02:13]} 24. Rf1 {[%clk 0:01:15]}  gxf4+ {[%clk 0:02:13]} 25. Rxf4 {[%clk 0:01:16]}  Qxf4+ {[%clk 0:02:13]} 26. Qxf4 {[%clk 0:01:17]}  Rxf4 {[%clk 0:02:14]} 27. Kxf4 {[%clk 0:01:16]}  Ke7 {[%clk 0:02:09]} 28. g4 {[%clk 0:01:09]}  h6 {[%clk 0:02:05]} 29. Be4 {[%clk 0:01:06]}  d5 {[%clk 0:02:04]} 30. cxd5 {[%clk 0:01:06]}  exd5 {[%clk 0:02:04]} 31. Bf5 {[%clk 0:01:06]}  Kd6 {[%clk 0:01:46]} 32. h4 {[%clk 0:01:05]}  d4 {[%clk 0:01:42]} 33. b3 {[%clk 0:00:52]}  Re8 {[%clk 0:01:29]} 34. g5 {[%clk 0:00:49]}  Rf8 {[%clk 0:01:29]} 35. Rf2 {[%clk 0:00:30]}  Bc8 {[%clk 0:01:26]} 36. Ke4 {[%clk 0:00:30]}  hxg5 {[%clk 0:01:23]} 37. hxg5 {[%clk 0:00:29]}  Rxf5 {[%clk 0:01:17]} 38. Rh2 {[%clk 0:00:08]}  Rxg5 {[%clk 0:01:14]} 39. Rh6+ {[%clk 0:00:07]}  Be6 {[%clk 0:01:14]} 40. Kd3 {[%clk 0:00:02]}  Rg3+ {[%clk 0:01:14]} 41. Kd2 {[%clk 0:00:03]}  Rg2+ {[%clk 0:01:14]} 42. Kd3 {[%clk 0:00:04]}  Rxa2 {[%clk 0:01:15]} 43. b4 {[%clk 0:00:04]}  Ra3+ {[%clk 0:01:14]} 0-1

[Event "January 9 Early 2024"]
[Site "https://www.chess.com"]
[Date "2024.01.11"]
[Round "4"]
[White "Albuquerque Junior,Wellington S."]
[Black "Golubev, Mikhail"]
[Result "0-1"]
[Board "129"]
[TimeControl "180+1"]
[WhiteFideId "2151480"]
[BlackFideId "14100983"]
[WhiteElo "2403"]
[BlackElo "2628"]
[WhiteTeam "BRA"]
[BlackTeam "UKR"]
[WhiteClock "0:00:03"]
[BlackClock "0:00:28"]

1. c4 {[%clk 0:03:00]}  g6 {[%clk 0:02:59]} 2. g3 {[%clk 0:03:00]}  Bg7 {[%clk 0:02:59]} 3. Bg2 {[%clk 0:03:01]}  e5 {[%clk 0:03:00]} 4. Nc3 {[%clk 0:03:01]}  Nc6 {[%clk 0:03:00]} 5. e4 {[%clk 0:03:01]}  Nd4 {[%clk 0:02:57]} 6. Nge2 {[%clk 0:02:58]}  Nxe2 {[%clk 0:02:56]} 7. Nxe2 {[%clk 0:02:52]}  d6 {[%clk 0:02:44]} 8. h3 {[%clk 0:02:48]}  Ne7 {[%clk 0:02:36]} 9. d4 {[%clk 0:02:41]}  exd4 {[%clk 0:02:34]} 10. Nxd4 {[%clk 0:02:42]}  O-O {[%clk 0:02:33]} 11. O-O {[%clk 0:02:41]}  Nc6 {[%clk 0:02:25]} 12. Be3 {[%clk 0:02:36]}  Ne5 {[%clk 0:02:15]} 13. Rc1 {[%clk 0:02:31]}  c5 {[%clk 0:02:05]} 14. Nb5 {[%clk 0:02:24]}  Nc6 {[%clk 0:01:43]} 15. b3 {[%clk 0:02:02]}  a6 {[%clk 0:01:42]} 16. Nxd6 {[%clk 0:02:00]}  Nd4 {[%clk 0:01:43]} 17. Nxc8 {[%clk 0:01:54]}  Rxc8 {[%clk 0:01:43]} 18. f4 {[%clk 0:01:53]}  Qa5 {[%clk 0:01:37]} 19. Rf2 {[%clk 0:01:40]}  Rfd8 {[%clk 0:01:32]} 20. Qe1 {[%clk 0:01:41]}  Qa3 {[%clk 0:01:22]} 21. e5 {[%clk 0:01:29]}  Nf5 {[%clk 0:01:12]} 22. Re2 {[%clk 0:01:16]}  b5 {[%clk 0:01:01]} 23. Bd5 {[%clk 0:00:58]}  bxc4 {[%clk 0:00:52]} 24. Bxc4 {[%clk 0:00:45]}  Nxe3 {[%clk 0:00:43]} 25. Rxe3 {[%clk 0:00:43]}  Qxa2 {[%clk 0:00:43]} 26. e6 {[%clk 0:00:36]}  Bd4 {[%clk 0:00:42]} 27. exf7+ {[%clk 0:00:36]}  Kf8 {[%clk 0:00:41]} 28. Kh1 {[%clk 0:00:10]}  Bxe3 {[%clk 0:00:40]} 29. Qxe3 {[%clk 0:00:11]}  Rd2 {[%clk 0:00:29]} 30. Qe4 {[%clk 0:00:03]}  Rh2+ {[%clk 0:00:28]} 31. Kg1 {[%clk 0:00:03]}  Qf2# {[%clk 0:00:28]} 0-1

[Event "January 9 Early 2024"]
[Site "https://www.chess.com"]
[Date "2024.01.11"]
[Round "4"]
[White "Ryan, Joseph"]
[Black "Marn, Jan"]
[Result "0-1"]
[Board "130"]
[TimeControl "180+1"]
[WhiteFideId "2500426"]
[BlackFideId "14619245"]
[WhiteElo "2231"]
[BlackElo "2464"]
[WhiteTeam "IRL"]
[BlackTeam "SLO"]
[WhiteClock "0:00:45"]
[BlackClock "0:00:16"]

1. e4 {[%clk 0:03:00]}  f5 {[%clk 0:02:51]} 2. exf5 {[%clk 0:03:00]}  d5 {[%clk 0:02:52]} 3. Qh5+ {[%clk 0:02:51]}  Kd7 {[%clk 0:02:03]} 4. Nf3 {[%clk 0:02:50]}  Nc6 {[%clk 0:01:59]} 5. Bb5 {[%clk 0:02:48]}  Nf6 {[%clk 0:01:39]} 6. Ne5+ {[%clk 0:02:44]}  Kd6 {[%clk 0:01:40]} 7. Nf7+ {[%clk 0:02:42]}  Kc5 {[%clk 0:01:40]} 8. Qe2 {[%clk 0:02:35]}  Qe8 {[%clk 0:01:36]} 9. c3 {[%clk 0:02:18]}  Qxf7 {[%clk 0:01:28]} 10. d4+ {[%clk 0:02:18]}  Kd6 {[%clk 0:01:28]} 11. Bf4+ {[%clk 0:02:17]}  Kd7 {[%clk 0:01:28]} 12. Nd2 {[%clk 0:02:13]}  Kd8 {[%clk 0:01:20]} 13. g4 {[%clk 0:02:10]}  e6 {[%clk 0:01:12]} 14. Bxc6 {[%clk 0:01:56]}  bxc6 {[%clk 0:01:11]} 15. Nf3 {[%clk 0:01:56]}  exf5 {[%clk 0:01:09]} 16. Ne5 {[%clk 0:01:54]}  Qe8 {[%clk 0:01:09]} 17. g5 {[%clk 0:01:54]}  Ne4 {[%clk 0:01:07]} 18. f3 {[%clk 0:01:54]}  Nd6 {[%clk 0:01:06]} 19. O-O-O {[%clk 0:01:45]}  Nf7 {[%clk 0:00:57]} 20. Rde1 {[%clk 0:01:34]}  Nxe5 {[%clk 0:00:56]} 21. Bxe5 {[%clk 0:01:34]}  Qf7 {[%clk 0:00:47]} 22. f4 {[%clk 0:01:31]}  Bd6 {[%clk 0:00:46]} 23. h4 {[%clk 0:01:31]}  Bxe5 {[%clk 0:00:46]} 24. dxe5 {[%clk 0:01:26]}  Be6 {[%clk 0:00:45]} 25. h5 {[%clk 0:01:26]}  Kd7 {[%clk 0:00:41]} 26. Qe3 {[%clk 0:01:26]}  g6 {[%clk 0:00:40]} 27. h6 {[%clk 0:01:20]}  Rhb8 {[%clk 0:00:40]} 28. Rd1 {[%clk 0:01:18]}  Qe7 {[%clk 0:00:39]} 29. Rd4 {[%clk 0:01:11]}  Rb6 {[%clk 0:00:36]} 30. Rhd1 {[%clk 0:01:10]}  Rab8 {[%clk 0:00:37]} 31. R1d2 {[%clk 0:01:10]}  Ke8 {[%clk 0:00:33]} 32. b3 {[%clk 0:01:06]}  Kf7 {[%clk 0:00:34]} 33. c4 {[%clk 0:01:07]}  Qa3+ {[%clk 0:00:34]} 34. Kd1 {[%clk 0:01:06]}  c5 {[%clk 0:00:25]} 35. Rxd5 {[%clk 0:00:54]}  Bxd5 {[%clk 0:00:25]} 36. Rxd5 {[%clk 0:00:54]}  Qxa2 {[%clk 0:00:21]} 37. Qd3 {[%clk 0:00:49]}  Qa1+ {[%clk 0:00:16]} 38. Ke2 {[%clk 0:00:49]}  Qb2+ {[%clk 0:00:16]} 39. Kf3 {[%clk 0:00:46]}  Rxb3 {[%clk 0:00:16]} 40. Rd7+ {[%clk 0:00:45]}  Ke8 {[%clk 0:00:16]} 0-1

[Event "January 9 Early 2024"]
[Site "https://www.chess.com"]
[Date "2024.01.11"]
[Round "4"]
[White "Matthes, Aaron"]
[Black "Ronka, Erik"]
[Result "1-0"]
[Board "132"]
[TimeControl "180+1"]
[WhiteFideId "16227310"]
[BlackFideId "505080"]
[WhiteElo "2389"]
[BlackElo "2515"]
[WhiteTeam "GER"]
[BlackTeam "FIN"]
[WhiteClock "0:00:35"]
[BlackClock "0:00:01"]

1. Nf3 {[%clk 0:03:00]}  d5 {[%clk 0:02:57]} 2. g3 {[%clk 0:03:00]}  Nf6 {[%clk 0:02:56]} 3. Bg2 {[%clk 0:03:01]}  e6 {[%clk 0:02:56]} 4. O-O {[%clk 0:03:01]}  c5 {[%clk 0:02:57]} 5. d4 {[%clk 0:02:56]}  cxd4 {[%clk 0:02:55]} 6. Nxd4 {[%clk 0:02:56]}  e5 {[%clk 0:02:51]} 7. Nf3 {[%clk 0:02:56]}  Nc6 {[%clk 0:02:51]} 8. Bg5 {[%clk 0:02:53]}  Be6 {[%clk 0:02:37]} 9. Nc3 {[%clk 0:02:50]}  Be7 {[%clk 0:02:30]} 10. Ne1 {[%clk 0:02:31]}  e4 {[%clk 0:02:08]} 11. Nb5 {[%clk 0:02:23]}  h6 {[%clk 0:01:53]} 12. Be3 {[%clk 0:02:12]}  O-O {[%clk 0:01:51]} 13. c3 {[%clk 0:02:09]}  Ng4 {[%clk 0:01:38]} 14. Bd4 {[%clk 0:02:04]}  a6 {[%clk 0:01:37]} 15. Na3 {[%clk 0:01:59]}  f5 {[%clk 0:01:10]} 16. Nec2 {[%clk 0:01:51]}  f4 {[%clk 0:01:08]} 17. f3 {[%clk 0:01:43]}  exf3 {[%clk 0:00:59]} 18. exf3 {[%clk 0:01:41]}  Nf6 {[%clk 0:00:51]} 19. gxf4 {[%clk 0:01:36]}  Nh5 {[%clk 0:00:41]} 20. Be5 {[%clk 0:01:26]}  Bc5+ {[%clk 0:00:35]} 21. Nd4 {[%clk 0:01:23]}  Nxf4 {[%clk 0:00:27]} 22. Nc2 {[%clk 0:01:12]}  Nxe5 {[%clk 0:00:27]} 23. Kh1 {[%clk 0:01:07]}  Nxg2 {[%clk 0:00:20]} 24. Nxe6 {[%clk 0:01:06]}  Qf6 {[%clk 0:00:17]} 25. Nxc5 {[%clk 0:00:59]}  Nh4 {[%clk 0:00:11]} 26. Nd4 {[%clk 0:00:57]}  b6 {[%clk 0:00:08]} 27. Nce6 {[%clk 0:00:51]}  Rfe8 {[%clk 0:00:09]} 28. Nc7 {[%clk 0:00:50]}  Rac8 {[%clk 0:00:04]} 29. Nxe8 {[%clk 0:00:50]}  Rxe8 {[%clk 0:00:05]} 30. f4 {[%clk 0:00:48]}  Nc4 {[%clk 0:00:05]} 31. Qd2 {[%clk 0:00:44]}  Ne3 {[%clk 0:00:04]} 32. Rae1 {[%clk 0:00:41]}  Nhf5 {[%clk 0:00:02]} 33. Rf3 {[%clk 0:00:38]}  Nxd4 {[%clk 0:00:01]} 34. cxd4 {[%clk 0:00:35]} 1-0

[Event "January 9 Early 2024"]
[Site "https://www.chess.com"]
[Date "2024.01.11"]
[Round "4"]
[White "Hungaski, Robert"]
[Black "Velikanov, Alexander"]
[Result "1-0"]
[Board "134"]
[TimeControl "180+1"]
[WhiteFideId "2021030"]
[BlackFideId "2039290"]
[WhiteElo "2447"]
[BlackElo "2792"]
[WhiteTeam "USA"]
[BlackTeam "USA"]
[WhiteClock "0:00:36"]
[BlackClock "0:00:02"]

1. e4 {[%clk 0:03:00]}  e6 {[%clk 0:03:00]} 2. d4 {[%clk 0:03:00]}  d5 {[%clk 0:03:01]} 3. Nc3 {[%clk 0:03:00]}  Nf6 {[%clk 0:03:00]} 4. e5 {[%clk 0:03:00]}  Nfd7 {[%clk 0:03:00]} 5. Nce2 {[%clk 0:03:00]}  c5 {[%clk 0:02:58]} 6. c3 {[%clk 0:03:00]}  Nc6 {[%clk 0:02:57]} 7. Nf3 {[%clk 0:02:59]}  Be7 {[%clk 0:02:47]} 8. h4 {[%clk 0:02:55]}  Qb6 {[%clk 0:02:46]} 9. a3 {[%clk 0:02:54]}  f6 {[%clk 0:02:32]} 10. Nf4 {[%clk 0:02:51]}  Ndxe5 {[%clk 0:02:21]} 11. Nxe5 {[%clk 0:02:21]}  fxe5 {[%clk 0:02:15]} 12. Qh5+ {[%clk 0:02:21]}  Kd8 {[%clk 0:01:37]} 13. dxe5 {[%clk 0:02:04]}  c4 {[%clk 0:01:36]} 14. Ng6 {[%clk 0:01:40]}  hxg6 {[%clk 0:01:13]} 15. Qxh8+ {[%clk 0:01:41]}  Kc7 {[%clk 0:01:12]} 16. Qxg7 {[%clk 0:01:39]}  Bd7 {[%clk 0:01:12]} 17. Be2 {[%clk 0:01:31]}  Rf8 {[%clk 0:01:02]} 18. O-O {[%clk 0:01:28]}  Bc5 {[%clk 0:00:58]} 19. Be3 {[%clk 0:01:27]}  Rf5 {[%clk 0:00:53]} 20. Bxc5 {[%clk 0:01:23]}  Qxc5 {[%clk 0:00:54]} 21. Qxg6 {[%clk 0:01:08]}  Nxe5 {[%clk 0:00:52]} 22. Qg3 {[%clk 0:01:07]}  Qd6 {[%clk 0:00:44]} 23. Rae1 {[%clk 0:01:06]}  Bc6 {[%clk 0:00:36]} 24. Bg4 {[%clk 0:01:01]}  Nxg4 {[%clk 0:00:35]} 25. Qxg4 {[%clk 0:01:02]}  Kb6 {[%clk 0:00:23]} 26. Re3 {[%clk 0:00:59]}  Ka5 {[%clk 0:00:20]} 27. Rfe1 {[%clk 0:00:53]}  Bd7 {[%clk 0:00:18]} 28. Qg3 {[%clk 0:00:50]}  Qb6 {[%clk 0:00:15]} 29. R3e2 {[%clk 0:00:42]}  Ka4 {[%clk 0:00:12]} 30. Qe3 {[%clk 0:00:40]}  Qc7 {[%clk 0:00:05]} 31. Qxa7+ {[%clk 0:00:39]}  Kb3 {[%clk 0:00:05]} 32. Qd4 {[%clk 0:00:36]}  Rf4 {[%clk 0:00:03]} 33. Qd1+ {[%clk 0:00:36]}  Ka2 {[%clk 0:00:01]} 34. b4+ {[%clk 0:00:36]}  Kxa3 {[%clk 0:00:01]} 35. Qa1+ {[%clk 0:00:36]}  Kb3 {[%clk 0:00:02]} 36. Rb1# {[%clk 0:00:36]} 1-0

[Event "January 9 Early 2024"]
[Site "https://www.chess.com"]
[Date "2024.01.11"]
[Round "4"]
[White "Gurevich, Dmitry"]
[Black "Skibbe, Willi"]
[Result "1-0"]
[Board "137"]
[TimeControl "180+1"]
[WhiteFideId "2000407"]
[BlackFideId "4682190"]
[WhiteElo "2530"]
[BlackElo "2367"]
[WhiteTeam "USA"]
[BlackTeam "GER"]
[WhiteClock "0:00:27"]
[BlackClock "0:00:04"]

1. d4 {[%clk 0:03:00]}  d5 {[%clk 0:02:59]} 2. c4 {[%clk 0:03:00]}  e6 {[%clk 0:02:59]} 3. Nc3 {[%clk 0:03:00]}  c6 {[%clk 0:02:57]} 4. e3 {[%clk 0:02:57]}  Nf6 {[%clk 0:02:56]} 5. Nf3 {[%clk 0:02:55]}  Nbd7 {[%clk 0:02:56]} 6. Qc2 {[%clk 0:02:52]}  Bd6 {[%clk 0:02:55]} 7. b3 {[%clk 0:02:51]}  O-O {[%clk 0:02:55]} 8. Be2 {[%clk 0:02:51]}  b6 {[%clk 0:02:56]} 9. O-O {[%clk 0:02:51]}  Bb7 {[%clk 0:02:57]} 10. Bb2 {[%clk 0:02:51]}  Rc8 {[%clk 0:02:57]} 11. Rad1 {[%clk 0:02:48]}  Qe7 {[%clk 0:02:47]} 12. Rfe1 {[%clk 0:02:46]}  c5 {[%clk 0:02:38]} 13. cxd5 {[%clk 0:02:45]}  Nxd5 {[%clk 0:02:33]} 14. Nxd5 {[%clk 0:02:38]}  Bxd5 {[%clk 0:02:32]} 15. e4 {[%clk 0:02:30]}  Bb7 {[%clk 0:02:10]} 16. d5 {[%clk 0:02:24]}  e5 {[%clk 0:02:01]} 17. g3 {[%clk 0:02:16]}  Rfd8 {[%clk 0:01:45]} 18. Nh4 {[%clk 0:02:13]}  g6 {[%clk 0:01:45]} 19. a4 {[%clk 0:02:02]}  Nf6 {[%clk 0:01:33]} 20. Bf1 {[%clk 0:01:55]}  Qc7 {[%clk 0:01:27]} 21. Bh3 {[%clk 0:01:51]}  Rb8 {[%clk 0:01:27]} 22. f4 {[%clk 0:01:46]}  Ne8 {[%clk 0:00:53]} 23. Qc3 {[%clk 0:01:23]}  f6 {[%clk 0:00:47]} 24. Be6+ {[%clk 0:01:22]}  Kg7 {[%clk 0:00:44]} 25. Nf3 {[%clk 0:01:13]}  exf4 {[%clk 0:00:41]} 26. e5 {[%clk 0:01:12]}  fxe5 {[%clk 0:00:37]} 27. Nxe5 {[%clk 0:01:11]}  Bxe5 {[%clk 0:00:20]} 28. Qxe5+ {[%clk 0:01:00]}  Qxe5 {[%clk 0:00:19]} 29. Bxe5+ {[%clk 0:01:00]}  Kf8 {[%clk 0:00:20]} 30. Rf1 {[%clk 0:00:45]}  Nd6 {[%clk 0:00:15]} 31. Rxf4+ {[%clk 0:00:43]}  Ke7 {[%clk 0:00:16]} 32. Bf6+ {[%clk 0:00:41]}  Ke8 {[%clk 0:00:15]} 33. Re1 {[%clk 0:00:34]}  c4 {[%clk 0:00:04]} 34. Bh3+ {[%clk 0:00:27]} 1-0